Cogmind - Beta 9.6 @@@ ROGUE MODE // 2020.04.14 @ 20:13:52 // Winter2019/RPGLIKE Player: IAMCRAIG Result: Destroyed by D-53 Grenadier with Mini Grenade Launcher Performance ------------- Evolutions (0) 0 Regions Visited (2) 400 Robots Destroyed (42) 210 Value Destroyed (915) 915 Prototype IDs (6) 120 Alien Tech Used (0) 0 Bonus (67) 67 TOTAL SCORE: 1712 Bonus ------- Follower Combat Kills 67 Cogmind --------- Core Integrity 0/700 Matter 300/300 Energy 230/230 System Corruption 0% Temperature Cool (0) Movement Treading (160) Location -10/Mines Parts ------- > --- POWER (2) -------- Light Nuclear Core Makeshift Power Source > --- PROPULSION (2) --- Light Treads Wheel > --- UTILITY (4) ------ Improved Heat Sink Signal Interpreter Improved Terrain Scanner Hacking Suite > --- WEAPON (2) ------- EM Pulse Gun Rocket Launcher > --- INVENTORY (1) ---- Mining Laser Peak State ------------ > --- POWER ------------ Light Nuclear Core Makeshift Power Source > --- PROPULSION ------- Light Treads Wheel > --- UTILITY ---------- Improved Heat Sink Signal Interpreter Improved Terrain Scanner Hacking Suite > --- WEAPON ----------- EM Pulse Gun Rocket Launcher > --- INVENTORY -------- Mining Laser [Rating: 21] Favorites ----------- Power Improved Ion Engine Engine Improved Ion Engine Power Core Light Nuclear Core Propulsion Light Treads Treads Light Treads Wheel Wheel Utility Signal Interpreter Device Improved Terrain Scanner Processor Signal Interpreter Hackware Hacking Suite Weapon EM Pulse Gun Energy Gun EM Pulse Gun Launcher Rocket Launcher Build | -11 -10 -10 ------- Run | Scr Mat Min Slots Evolved 6 | 3 2 1 Power 1 | . . 1 Propulsion 1 | 1 . . Utility 3 | 1 2 . Weapon 1 | 1 . . Parts Attached 22 | 6 12 4 Power 5 | 1 2 2 Engine 4 | 1 2 1 Core 1 | . . 1 Reactor . | . . . Propulsion 4 | 2 2 . Treads 1 | 1 . . Leg . | . . . Wheel 3 | 1 2 . Hover . | . . . Flight . | . . . Utility 8 | 1 5 2 Device 5 | 1 2 2 Storage . | . . . Processor 2 | . 2 . Hackware 1 | . 1 . Protection . | . . . Artifact . | . . . Weapon 5 | 2 3 . Energy Gun 3 | 2 1 . Energy Cannon . | . . . Ballistic Gun . | . . . Ballistic Cannon . | . . . Launcher 2 | . 2 . Special Weapon . | . . . Impact Weapon . | . . . Slashing Weapon . | . . . Piercing Weapon . | . . . Special Melee Weapon . | . . . Unidentified Prototypes . | . . . Parts Lost . | . . . Power . | . . . Propulsion . | . . . Utility . | . . . Weapon . | . . . Highest Loss Streak . | . . . Average Slot Usage (%) 97 | . 96 100 Engine 9 | . 11 6 Core 2 | . . 5 Treads 11 | . 12 10 Wheel 11 | . 11 10 Device 15 | . 12 21 Processor 12 | . 13 11 Hackware 9 | . 8 10 Energy Gun 15 | . 18 10 Launcher 8 | . 6 10 Naked Turns . | . . . Heaviest Build 17 | 10 14 17 Greatest Support 25 | 15 25 25 Greatest Overweight (x) 1 | . . 1 Average Overweight (x) . | . . . Largest Inventory Capacity 1 | . 1 1 Average Capacity . | . . 1 Most Carried 1 | . 1 1 Average Carried . | . . . Final Capacity 1 | . 1 1 Final Carried 1 | . 1 1 Class Distribution -------------------- 81% | Mutant 18% | Scavenger-Mutant Dominant Class ---------------- Mutant | -10/Materials Scavenger-Mutant | -10/Mines Resources | -11 -10 -10 ----------- Run | Scr Mat Min Matter Collected 597 | 176 226 195 Remotely . | . . . Salvage Created 846 | 61 587 198 Parts 50 | 6 38 6 Haulers Intercepted 2 | . 2 . Recyclers Shooed . | . . . Parts Field Recycled . | . . . Retrieved Matter . | . . . Parts Self-Destructed . | . . . Prevented . | . . . Kills | -11 -10 -10 ------- Run | Scr Mat Min Combat Hostiles Destroyed 31 | . 11 20 Guns 8 | . 6 2 AOE 23 | . 5 18 Classes Destroyed 8 | 1 5 2 Worker 2 | . 2 . Tunneler 3 | 3 . . Hauler 2 | . 2 . Operator 1 | . 1 . Watcher 3 | . 3 . Swarmer 1 | . . 1 Grunt 13 | . 11 2 Assembled 17 | . . 17 Best Kill Streak 13 | 2 4 13 Combat Bots Only 13 | . 2 13 Max Kills in Single Turn 5 | 1 2 5 Gunslinging . | . . . Exploded 5 | . 2 5 Melee . | . . . Uniques/NPCs Destroyed . | . . . Combat | -11 -10 -10 -------- Run | Scr Mat Min Damage Taken 1561 | . 521 1040 Core 1246 | . 405 841 Absorbed by Shields . | . . . Redirected to Core 1055 | . 368 687 Core Remaining (%) 100 | 100 . . Volleys Fired 109 | 6 71 32 Largest 2 | 2 2 1 Hottest 90 | 90 90 40 Shots Fired 136 | 9 95 32 Gun 119 | 9 89 21 Cannon . | . . . Launcher 17 | . 6 11 Special . | . . . Kinetic . | . . . Thermal 11 | 3 8 . Explosive 17 | . 6 11 Electromagnetic 108 | 6 81 21 Robot Hit Streak 11 | 2 8 11 Robot Miss Streak 2 | 2 2 2 Penetration Max . | . . . Secondary Targets 1 | . 1 . Max Gunslinging Chain 1 | . 1 . Shots Hit Robots 63 | 3 43 17 Core Hits 62 | 3 25 34 Critical Hits . | . . . Critical Kills . | . . . Critical Parts Destroyed . | . . . Melee Attacks . | . . . Impact . | . . . Slashing . | . . . Piercing . | . . . Sneak Attacks . | . . . Combat Hostiles . | . . . Follow-up Attacks . | . . . Damage Inflicted 2684 | 103 1078 1503 Guns 863 | 67 653 143 Cannons . | . . . Explosions 1809 | 36 425 1348 Melee . | . . . Ramming 12 | . . 12 Kinetic . | . . . Thermal 274 | 60 168 46 Explosive 1596 | . 294 1302 Electromagnetic 802 | 43 616 143 Impact . | . . . Slashing . | . . . Piercing . | . . . Highest Corruption . | . . . Average Corruption . | . . . Corruption Purged . | . . . Overload Shots . | . . . Overflow Damage 40 | . . 40 Projectiles . | . . . Explosions 40 | . . 40 Melee . | . . . Knockbacks . | . . . Impact . | . . . Kinetic . | . . . Secondary . | . . . Self-Inflicted Damage 226 | . 40 186 Shots 7 | . 1 6 Rammed 8 | . . 8 Targets Rammed 8 | . . 8 Kicked . | . . . Crushed . | . . . Highest Temperature 231 | 60 231 86 Average Temperature 44 | 33 44 42 Received Heat Transfer 382 | . 264 118 Siege Activations . | . . . Robots Corrupted . | . . . Combat Hostiles . | . . . Parts Fried 5 | . 4 1 Impact Corruptions . | . . . Robots Melted . | . . . Combat Hostiles . | . . . Parts Melted 2 | 1 1 . Heat Transferred 335 | 124 211 . Parts Sabotaged . | . . . Parts Stolen . | . . . Parts Stripped . | . . . Power Chain Reactions 5 | 1 3 1 Missiles Intercepted . | . . . Alert | -11 -10 -10 ------- Run | Scr Mat Min Peak Influence 399 | 15 399 333 Average Influence 148 | 3 129 194 Maximum Alert Level 1 | . 1 1 Low Security (%) 72 | 100 87 44 Level 1 27 | . 12 55 Level 2 . | . . . Level 3 . | . . . Level 4 . | . . . Level 5 . | . . . High Security . | . . . Max Security . | . . . Squads Dispatched 6 | . 6 . Investigation 5 | . 5 . Extermination . | . . . Reinforcement 1 | . 1 . Assault . | . . . Garrison . | . . . Intercept . | . . . Construction Impeded . | . . . Haulers Reinforced . | . . . Stealth | -11 -10 -10 --------- Run | Scr Mat Min Distress Signals . | . . . Communications Jammed . | . . . Distress Signals . | . . . Times Spotted 51 | . 19 32 Peak Tracking Total 20 | . 5 20 Tactical Retreats 2 | . . 2 Traps | -11 -10 -10 ------- Run | Scr Mat Min Traps Triggered . | . . . Indirectly . | . . . Trap Hack Attempts . | . . . Triggered . | . . . Disarmed . | . . . Reprogrammed . | . . . Reused . | . . . Traps Extracted . | . . . Installed . | . . . Triggered 1 | . 1 . Machines | -11 -10 -10 ---------- Run | Scr Mat Min Machines Disabled 14 | . 11 3 Max in Single Turn 3 | . 3 2 Machines Sabotaged 3 | . 3 . Garrisons Compromised . | . . . Overloaded Fab Kills . | . . . Fab Network Shutdowns . | . . . Hacking | -11 -10 -10 --------- Run | Scr Mat Min Machines Accessed 10 | . 10 . Terminals 7 | . 7 . Fabricators . | . . . Repair Stations 1 | . 1 . Recycling Units 2 | . 2 . Scanalyzers . | . . . Garrison Access . | . . . Total Hacks 40 | . 40 . Successful 34 | . 34 . Failed 6 | . 6 . Catastrophic . | . . . Database Lockouts . | . . . Manual 22 | . 22 . Terminals 31 | . 31 . Fabricators . | . . . Repair Stations 4 | . 4 . Recycling Units 5 | . 5 . Scanalyzers . | . . . Garrison Access . | . . . Terminal Hacks 10 | . 10 . Prototype ID Bank 3 | . 3 . Branch Access Points 1 | . 1 . Locate Traps 3 | . 3 . Hauler Manifests 2 | . 2 . Zone Layout 1 | . 1 . Fabricator Hacks . | . . . Repair Station Hacks 4 | . 4 . Scan Component 2 | . 2 . Repair 2 | . 2 . Recycling Unit Hacks 3 | . 3 . Report Inventory 2 | . 2 . Retrieve Components 1 | . 1 . Scanalyzer . | . . . Garrison Access Hacks . | . . . Unauthorized Hacks 17 | . 17 . Terminals 16 | . 16 . Track 4 | . 4 . Botnet 3 | . 3 . Disrupt 3 | . 3 . Operators 1 | . 1 . Sabotage 5 | . 5 . Fabricators . | . . . Repair Stations . | . . . Recycling Units 1 | . 1 . Reject 1 | . 1 . Scanalyzers . | . . . Garrison Access . | . . . Data Cores Recovered . | . . . Used . | . . . Hacking Detections 10 | . 10 . Full Trace Events . | . . . Feedback Events . | . . . Feedback Blocked . | . . . Robot Schematics Acquired . | . . . Robots Built . | . . . Matter . | . . . Time . | . . . Total Robot Build Rating . | . . . Part Schematics Acquired . | . . . Parts Built . | . . . Matter . | . . . Time . | . . . Total Part Build Rating . | . . . Parts Repaired 2 | . 2 . Time 58 | . 58 . Parts Recycled . | . . . Recycled Matter . | . . . Retrieved Matter . | . . . Retrieved Components 1 | . 1 . Parts Scanalyzed . | . . . Part Schematics Acquired . | . . . Parts Damaged . | . . . Bothacking | -11 -10 -10 ------------ Run | Scr Mat Min Used RIF Installer . | . . . Robots Hacked . | . . . Non-combat . | . . . Combat . | . . . Robot Hacks Applied . | . . . Relay Couplers Released . | . . . Robots Rewired . | . . . Allies Hacked . | . . . Hacks Repelled . | . . . Allies | -11 -10 -10 -------- Run | Scr Mat Min Total Allies 4 | . . 4 Largest Group 3 | . . 3 Highest-Rated Group 76 | . . 76 Highest-Rated Ally 31 | . . 31 Total Orders . | . . . Ally Attacks 10 | . . 10 Total Damage 207 | . . 207 Kills 3 | . . 3 Allies Corrupted . | . . . Allies Melted . | . . . Intel | -11 -10 -10 ------- Run | Scr Mat Min Robot Analysis Total . | . . . Derelict Logs Recovered 1 | . . 1 Drone Launches . | . . . Drone Recoveries . | . . . Exploration | -11 -10 -10 ------------- Run | Scr Mat Min Turns Passed 1871 | 71 1100 700 Spaces Moved 1336 | 60 850 426 Core 1 | 1 . . Treads 303 | . 28 275 Legs . | . . . Wheels 1032 | 59 822 151 Hover . | . . . Flight . | . . . Fastest Speed 50 | 50 80 80 Average Speed 98 | 79 82 132 Slowest Speed 160 | 80 160 160 Overloaded Moves . | . . . Propulsion Burnouts . | . . . Robots Hopped . | . . . Cave-ins Triggered . | . . . Exploration Rate (%) 52 | 3 97 57 Regions Visited 2 Branch Regions 1 Pre-discovered Areas 1 | . . 1 Known Exits Taken 1 | . 1 . Unknown Exits Taken 1 | 1 . . Scrap Searched 1 | . . 1 Spaces Dug . | . . . Terrain Destroyed 251 | . 127 124 Melee . | . . . Projectile . | . . . AOE 251 | . 127 124 Actions | -11 -10 -10 --------- Run | Scr Mat Min Total 1748 | 71 1150 527 Wait 232 | . 192 40 Move 1334 | 59 849 426 Hop . | . . . Pick Up 3 | . 1 2 Fast Attach 15 | 6 7 2 Attach 1 | . . 1 Detach 1 | . . 1 Swap 6 | . 5 1 Drop 8 | . 5 3 Fire 109 | 6 71 32 Melee . | . . . Ram . | . . . Kick . | . . . Crush 8 | . . 8 Escape Stasis . | . . . Rewire . | . . . Trap . | . . . Miscellaneous 31 | . 20 11 Route ------- -11/Scrapyard -10/Materials (discovered 5 exits: *Mat x3 / *Min x2) -10/Mines (discovered 3 exits: *Mat x2 / *Exi) History --------- Turn | Location | Event 8 | -11/Scrapyard | Discovered new exit (range 15) 9 | -11/Scrapyard | Upgraded with Propulsion slot (x1) 9 | -11/Scrapyard | Upgraded with Utility slot (x1) 9 | -11/Scrapyard | Upgraded with Weapon slot (x1) 72 | -11/Scrapyard | Entered Materials 97 | -10/Materials | Identified exit to Mines 245 | -10/Materials | Discovered new exit (range 5) 262 | -10/Materials | Discovered new exit (range 16) 313 | -10/Materials | Build established: Mutant 350 | -10/Materials | Upgraded with Utility slot (x1) 523 | -10/Materials | Discovered new exit (range 15) 643 | -10/Materials | Repaired Imp. Ion Engine 671 | -10/Materials | Repaired Wheel 770 | -10/Materials | Reached level 2 794 | -10/Materials | Upgraded with Utility slot (x1) 843 | -10/Materials | Identified exit to Materials 1124 | -10/Materials | Reached level 3 1172 | -10/Materials | Entered Mines 1201 | -10/Mines | Discovered new exit (range 6) 1249 | -10/Mines | Identified exit to Exiles 1284 | -10/Mines | Deemed a non-threat by the Exiles lab entrance 1403 | -10/Mines | Received a Mining Laser from a helpful Derelict 1506 | -10/Mines | Reached level 4 1518 | -10/Mines | Discovered exit to Materials (range 13) 1619 | -10/Mines | Discovered exit to Materials (range 14) 1660 | -10/Mines | Assembled infested the area 1708 | -10/Mines | Core integrity fell below 50% 1723 | -10/Mines | Core integrity fell below 20% 1745 | -10/Mines | Destroyed 13 combat bots 1761 | -10/Mines | Met a Derelict testing a Signal Generator 1780 | -10/Mines | Learned location of Zion (-6) 1792 | -10/Mines | Upgraded with Power slot (x1) 1833 | -10/Mines | Build established: Scavenger-Mutant 1872 | -10/Mines | Destroyed by D-53 Grenadier with Mini Grenade Launcher Last Messages --------------- assault force. 01766_ LS-B1I(g): "Okay, I guess that means it works. Now let's get out of here!" 01772_ Acquired 19 matter. 01780_ Acquired derelict log, extracted data. World map updated: -6/Zion. 01783_ ALERT: Intercepting significant anomalous signal. Redirecting assault force. 01792_ Upgraded: Power Slot (+1) 01793_ Acquired Mak. Power Source. 01796_ ALERT: Intercepting significant anomalous signal. Redirecting assault force. 01821_ S-10 Pest destroyed. 01822_ Slammed into S-10 Pest. 01836_ Upgraded: Core Integrity (+100) 01836_ Slammed into S-10 Pest. 01839_ S-10 Pest misfires. 01841_ S-10 Pest destroyed. 01857_ D-53 Grenadier: "LOCATED POTENTIAL SOURCE OF ANOMALOUS SIGNAL. NEUTRALIZING." Map ----- +----------------------------------------------------+ | | | | | | | | | | | | | | | | | | | | | | | | | | | | | | | | | | | ?????????#?#?#####?#######################? | | ??????????##########?#################?#??? | | ??????????##?##?#####################?##??# | | ??????????####?### ##################### | | ?????????##?###### ###################?# | | ????????##?#####?# ############ ##### | | ?????????######### ##### ### #?##? | | ?????????##?##??## ## % # < ##### | | ???????? ?######?# ?##%@ ####### | | ????????? ?###??### ####%# [ ####?### | | ?????????? ? ?## *%= # ####??### | | ????????????#? ### ######## #####?### | | ?????????? ?##? ######## d ####?# | | ?????????#?#?? ########## ### ###### | | ???????#?####?##### ######?####%### ###### | | ??????????###?#### ## ##### ## ###### | | ????????#?#####?# % # # ###### | | ??????????######## # ##?### | | ????????#??#?#??## # # ###### | | ????????????#???## ### %###### | | ??????????????##? ### # # =###### | | ??????????????### ### ## %= #=###### | | ????????????#??### ######## ! ###### | | ?????????????????# """ ####### ###### | | ?????????????#??## """ ####### ## ###### | | ???????????????### """ ###### ## #####? | | ???????????????### ###### ## ###### | | ???????????????#? ###### ## ###### | | ???????????????? ## ##### ###### | | ????????????????? ###?# ##### """ ###### | | ??????????????? ############ < """ ###### | | ?????????????? ??############# """ ###### | | ????????????? ? ?#?########### """ ##### | +----------------------------------------------------+ Best States ------------- Heat Dissipation 39 Energy Generation 24 Energy Capacity 265 Matter Stores 300 Matter Capacity 300 Sight Range 16 Robot Scan Range 10 Terrain Scan Range 16 Terrain Scan Density 385 Evasion (%) 44 Recoil Reduction 1 Offensive Hacking 10 Item Schematics ----------------- None Robot Schematics ------------------ None Fabricated ------------ Nothing Alien Tech Used ----------------- None Achievements -------------- None Challenges ------------ None RPGLIKE | -11 -10 -10 --------- Run | Scr Mat Min Levels Raised 3 | . 2 1 XP Earned 7777 | 3000 3300 1477 XP Spent 4580 | 1600 2420 560 Upgrades 13 | 4 6 3 Power Slot 1 | . . 1 Propulsion Slot 1 | 1 . . Utility Slot 3 | 1 2 . Weapon Slot 1 | 1 . . Core Integrity 2 | . . 2 Mass Support 1 | 1 . . Inventory Capacity 1 | . 1 . Terrain Scan Density 3 | . 3 . Protomatter Created 160 | . 160 . Integrity Restored 659 | . 409 250 Core 543 | . 341 202 Parts 116 | . 68 48 Protomatter Decayed 59 | . 20 39 Game ------ Seed BoreSlugReconstructor Manual? 0 Play Time 00:20:55 Cumulative 181.6 hours Start 2020.04.14 @ 19:53:26 End 2020.04.14 @ 20:13:52 Sessions 1 Manual Loads 0 Difficulty Rogue Special Mode Winter2019/RPGLIKE Game No. 63 Rogue 63 Adventurer 0 Explorer 0 Win Type - Total 1 Types 1/0/0/0/0/0/0 Lore% 66 Gallery% 73 Achievement% 64 Wizard Run 0 Options --------- ASCII 1 Keyboard 1 Movement Numpad Keybinds 0 Fullscreen 1 Font 16/SmallcapsGlow Map View 75x55 Tactical HUD 1 Map Filters NONE Filters NONE Steam 1 RUN: 6b6122cd-dccf-49f1-9136-f9d3fa8996e0